{"text_format":"1","workbook":"xlsx","n_sheets":2,"sheets":["Blad1","categorieën"],"not_rendered":{"charts":0,"images":0,"macros":1,"external_links":0,"defined_names":0,"comments":0,"pivot_tables":0},"unopened":[],"bounds":{"document_bytes":16777216,"sheet_cells":100000,"rows_first":2000,"rows_last":500,"rows_between":2000,"halvings":0,"cell_chars":16384,"cell_head_chars":4096},"cells_cut":0,"cells_raw":0,"read":"whole","date_system":"1900"}

{"sheet":"Blad1","index":0,"n_rows":23,"n_cols":3,"rows_kept":23,"cut":false,"hidden":false,"merged":[]}
["product naam","categorie naam","categorie nummer"]
["product 1","root / kast / slaapkamer",{"$f":"IFERROR(INDEX(categorieën!A1:B500,MATCH(B2,categorieën!A1:A500,0),2),\"\")","v":5}]
["product 2","cat 19",{"$f":"IFERROR(INDEX(categorieën!A2:B501,MATCH(B3,categorieën!A2:A501,0),2),\"\")","v":19}]
["product 3","root / kast / salon",{"$f":"IFERROR(INDEX(categorieën!A3:B502,MATCH(B4,categorieën!A3:A502,0),2),\"\")","v":7}]
["product 4",null,{"$f":"IFERROR(INDEX(categorieën!A4:B503,MATCH(B5,categorieën!A4:A503,0),2),\"\")","v":""}]
["product 5",null,{"$f":"IFERROR(INDEX(categorieën!A5:B504,MATCH(B6,categorieën!A5:A504,0),2),\"\")","v":""}]
["product 6",null,{"$f":"IFERROR(INDEX(categorieën!A6:B505,MATCH(B7,categorieën!A6:A505,0),2),\"\")","v":""}]
["product 7",null,{"$f":"IFERROR(INDEX(categorieën!A7:B506,MATCH(B8,categorieën!A7:A506,0),2),\"\")","v":""}]
["product 8",null,{"$f":"IFERROR(INDEX(categorieën!A8:B507,MATCH(B9,categorieën!A8:A507,0),2),\"\")","v":""}]
["product 9",null,{"$f":"IFERROR(INDEX(categorieën!A9:B508,MATCH(B10,categorieën!A9:A508,0),2),\"\")","v":""}]
["product 10",null,{"$f":"IFERROR(INDEX(categorieën!A10:B509,MATCH(B11,categorieën!A10:A509,0),2),\"\")","v":""}]
["product 11",null,{"$f":"IFERROR(INDEX(categorieën!A11:B510,MATCH(B12,categorieën!A11:A510,0),2),\"\")","v":""}]
["product 12",null,{"$f":"IFERROR(INDEX(categorieën!A12:B511,MATCH(B13,categorieën!A12:A511,0),2),\"\")","v":""}]
["product 13",null,{"$f":"IFERROR(INDEX(categorieën!A13:B512,MATCH(B14,categorieën!A13:A512,0),2),\"\")","v":""}]
["product 14",null,{"$f":"IFERROR(INDEX(categorieën!A14:B513,MATCH(B15,categorieën!A14:A513,0),2),\"\")","v":""}]
["product 15",null,{"$f":"IFERROR(INDEX(categorieën!A15:B514,MATCH(B16,categorieën!A15:A514,0),2),\"\")","v":""}]
["product 16",null,{"$f":"IFERROR(INDEX(categorieën!A16:B515,MATCH(B17,categorieën!A16:A515,0),2),\"\")","v":""}]
["product 17",null,{"$f":"IFERROR(INDEX(categorieën!A17:B516,MATCH(B18,categorieën!A17:A516,0),2),\"\")","v":""}]
["product 18",null,{"$f":"IFERROR(INDEX(categorieën!A18:B517,MATCH(B19,categorieën!A18:A517,0),2),\"\")","v":""}]
["product 19",null,{"$f":"IFERROR(INDEX(categorieën!A19:B518,MATCH(B20,categorieën!A19:A518,0),2),\"\")","v":""}]
["product 20",null,{"$f":"IFERROR(INDEX(categorieën!A20:B519,MATCH(B21,categorieën!A20:A519,0),2),\"\")","v":""}]
["product 21",null,{"$f":"IFERROR(INDEX(categorieën!A21:B520,MATCH(B22,categorieën!A21:A520,0),2),\"\")","v":""}]
["product 22"]

{"sheet":"categorieën","index":1,"n_rows":26,"n_cols":8,"rows_kept":26,"cut":false,"hidden":false,"merged":[]}
["root / tafels / eetkamer",1]
["root / tafels / huiskamer",2]
["root / tafels / salon",3,null,null,null,null,null,"https://www.extendoffice.com/documents/excel/2439-excel-drop-down-list-search.html"]
["root / kast / dressoir",4]
["root / kast / slaapkamer",5]
["root / kast / eetkamer",6]
["root / kast / salon",7]
["root / kast /huiskamer",8]
["cat 9",9]
["cat 10",10]
["cat 11",11]
["cat 12",12]
["cat 13",13]
["cat 14",14]
["cat 15",15]
["cat 16",16]
["cat 17",17]
["cat 18",18]
["cat 19",19]
["cat 20",20]
["cat 21",21]
["cat 22",22]
["cat 23",23]
["cat 24",24]
["cat 25",25]
["cat 26",26]